{"text_format":"2","workbook":"xlsx","n_sheets":1,"sheets":["Sheet1"],"not_rendered":{"charts":0,"images":0,"macros":0,"external_links":0,"defined_names":0,"comments":0,"pivot_tables":0},"unopened":[],"bounds":{"document_bytes":16777216,"sheet_cells":100000,"run_cost":"one","rows_first":2000,"rows_last":500,"rows_between":2000,"halvings":0,"cell_chars":16384,"cell_head_chars":4096},"cells_cut":0,"cells_raw":0,"read":"whole","date_system":"1900"}

{"sheet":"Sheet1","index":0,"n_rows":89,"n_cols":10,"rows_kept":89,"cut":false,"hidden":false,"merged":[]}
["Bride/Groom:"]
["Bride/Groom:"]
["Date of Wedding:"]
["Number of guests"]
[]
[null,null,"Estimate $","Actual Cost $","Difference $","Supplier Name","Contact details","Deposit due","Final payment due","Notes"]
[]
["CEREMONY ",null,0.0,0.0,{"$f":"C8-D8","v":"$0"}]
["Notice Fees ",null,0.0,0.0,"$0"]
["Ceremony Fee (Church/civil)",null,null,null,"$0"]
["ceremony music (choir/soloist/string quartet)",null,null,null,"$0"]
["FLOWERS",null,null,null,"$0"]
["Bouquets, buttonholes, corsages",null,null,null,"$0"]
["Ceremony flowers (pew ends, alter arrangements) ",null,null,null,"$0"]
["Reception flowers (pedestals, tables, trees)",null,null,null,"$0"]
[{"$nulls":4},"$0"]
["RECEPTION",null,null,null,"$0"]
["Venue Hire",null,null,null,"$0"]
["Reception canapés (hot/cold/static nibbles)",null,null,null,"$0"]
["Reception drink (Champagne/Pimm's/speciality cocktails)",null,null,null,"$0"]
["Wedding Meal (3 course/buffet/food stations) ",null,null,null,"$0"]
["Drinks  during meal (wine/soft drinks)",null,null,null,"$0"]
["Evening food (buffet/cheese board/mini burgers etc)",null,null,null,"$0"]
["evening drinks (tab behind bar/cash bar)",null,null,null,"$0"]
["Wedding cake  (or cupcake/minicake tower/cheeses etc)",null,null,null,"$0"]
["Table décor (non floral)",null,null,null,"$0"]
["Additional venue décor (rentals-linens, chairs, lighting)",null,null,null,"$0"]
[{"$nulls":4},"$0"]
["ENTERTAINMENT",null,null,null,"$0"]
["Reception (magician/jazz trip etc)",null,null,null,"$0"]
["Dinner (background music/soloists/pianist)",null,null,null,"$0"]
["Evening (band/DJ)",null,null,null,"$0"]
["Additional non musical entertainment (fireworks)",null,null,null,"$0"]
[{"$nulls":4},"$0"]
["TRANSPORT",null,null,null,"$0"]
["Bridal transport (to ceremony venue)",null,null,null,"$0"]
["Grooms transport (to ceremony venue)",null,null,null,"$0"]
["Bride & Groom to reception venue (inc above)",null,null,null,"$0"]
["Additional bridal transport (brdiesmaids)",null,null,null,"$0"]
["Guest transport",null,null,null,"$0"]
[{"$nulls":4},"$0"]
["FASHION",null,null,null,"$0"]
["Brides dress",null,null,null,"$0"]
["Brides accessories (shoes, jewellery)",null,null,null,"$0"]
["Bridesmaids outfits",null,null,null,"$0"]
["bridesmaids accessories (shoes/jewellery)",null,null,null,"$0"]
["Grooms  attire (buy/rent)",null,null,null,"$0"]
["Groomsmen's attire (buy /rent)",null,null,null,"$0"]
["Rings",null,null,null,"$0"]
["HAIR & BEAUTY",null,null,null,"$0"]
["Hair for bride",null,null,null,"$0"]
["Hair for bridesmaids and mother of the bride",null,null,null,"$0"]
["Make up for bride",null,null,null,"$0"]
["Make up for bridesmaids & mother of the bride",null,null,null,"$0"]
["STATIONERY",null,null,null,"$0"]
["Invites",null,null,null,"$0"]
["Postage",null,null,null,"$0"]
["RSVP's",null,null,null,"$0"]
["Menus ",null,null,null,"$0"]
["OOS ",null,null,null,"$0"]
["Place cards (could combine with menu)",null,null,null,"$0"]
["Table plans/escort cards",null,null,null,"$0"]
["Table numbers",null,null,null,"$0"]
["Thank yous",null,null,null,"$0"]
["REMAINING SUPPLIERS",null,null,null,"$0"]
["Photographer",null,null,null,"$0"]
["Videographer",null,null,null,"$0"]
["Other (photo booth/video booth)",null,null,null,"$0"]
["Wedding Planner",null,null,null,"$0"]
["Wedding Stylist",null,null,null,"$0"]
["Crèche service",null,null,null,"$0"]
["GIFTS",null,null,null,"$0"]
["for bride",null,null,null,"$0"]
["for groom",null,null,null,"$0"]
["for bridesmaids",null,null,null,"$0"]
["for groomsmen",null,null,null,"$0"]
["for parents",null,null,null,"$0"]
["for guests (favours)",null,null,null,"$0"]
[{"$nulls":4},"$0"]
["MISC",null,null,null,"$0"]
["Accommodation (night before)",null,null,null,"$0"]
["Accommodation (on night)",null,null,null,"$0"]
["Hen Night",null,null,null,"$0"]
["Stag night",null,null,null,"$0"]
["Honeymoon",null,null,null,"$0"]
["Wedding Insurance ",null,null,null,"$0"]
["Contingency",null,null,null,"$0"]
[{"$nulls":4},"$0"]
["TOTALS ",null,{"$f":"SUM(C8:C88)","v":"$0"},"$0","$0"]